bitfinex/quotes_BTCUSD_20251221
["timestamp","ask_amount","ask_price","bid_price","bid_amount"]
[1766360853977,0.00564,88616.0,88606.0,0.15687426]
[1766360854759,0.00564,88616.0,88606.0,0.16816017]
[1766360856549,0.00564,88616.0,88606.0,0.15687426]
[1766360857217,0.00564,88616.0,88606.0,0.16816017]
[1766360857550,0.00564,88616.0,88606.0,0.15687426]
[1766360857832,0.01692464,88616.0,88606.0,0.15687426]
[1766360859496,0.01128477,88615.0,88606.0,0.15687426]
[1766360859824,0.01692464,88616.0,88606.0,0.15687426]
[1766360860228,0.00564,88616.0,88606.0,0.15687426]
[1766360860590,0.01692464,88616.0,88606.0,0.15687426]
[1766360863970,0.00564,88616.0,88606.0,0.15687426]
[1766360865258,0.01692464,88616.0,88606.0,0.15687426]
[1766360867602,0.01692464,88616.0,88606.0,0.14559]
[1766360867935,0.00564,88616.0,88607.0,0.01692464]
[1766360868134,0.00544,88616.0,88607.0,0.01692464]
[1766360868788,0.01672464,88616.0,88607.0,0.01692464]
[1766360869428,0.01128477,88615.0,88607.0,0.01692464]
[1766360869661,0.01128553,88609.0,88604.0,0.00564]
[1766360870105,0.0112854,88610.0,88604.0,0.00544]
[1766360870864,0.01128502,88613.0,88604.0,0.00544]
[1766360871670,0.01128515,88612.0,88604.0,0.00544]
[1766360872781,0.01128502,88613.0,88604.0,0.00544]
[1766360872981,0.01128489,88614.0,88604.0,0.14995]
[1766360874399,0.01128489,88614.0,88604.0,0.22429]
[1766360874742,0.01128477,88615.0,88605.0,0.14451]
[1766360875175,0.01128489,88614.0,88605.0,0.14451]
[1766360875777,0.01128477,88615.0,88605.0,0.14451]
[1766360876486,0.00544,88616.0,88605.0,0.23013604]
[1766360876746,0.00544,88616.0,88606.0,0.14451]
[1766360877705,0.00544,88616.0,88606.0,0.36336]
[1766360877930,0.00544,88616.0,88607.0,0.14451]
[1766360878937,0.004891,88616.0,88607.0,0.15579579]
[1766360879614,0.004891,88616.0,88607.0,0.14451]
[1766360880718,0.01128477,88615.0,88608.0,0.14451]
[1766360880935,0.01617564,88616.0,88608.0,0.14451]
[1766360881124,0.01607564,88616.0,88608.0,0.14451]
[1766360881967,0.01128477,88615.0,88608.0,0.14451]
[1766360882759,0.01128489,88614.0,88608.0,0.14451]
[1766360883311,0.01607564,88616.0,88608.0,0.14451]
[1766360883865,0.004791,88616.0,88608.0,0.14451]
[1766360884084,0.01607564,88616.0,88608.0,0.14451]
[1766360884295,0.01128489,88614.0,88608.0,0.14451]
[1766360884747,0.01128477,88615.0,88608.0,0.14451]
[1766360885206,0.01128489,88614.0,88608.0,0.14451]
[1766360885848,0.01128489,88614.0,88607.0,0.21885]
[1766360885849,0.01128502,88613.0,88607.0,0.21885]
[1766360886084,0.01128502,88613.0,88607.0,0.21865]
[1766360886890,0.01128489,88614.0,88607.0,0.35287]
[1766360887507,0.01128502,88613.0,88607.0,0.35287]
[1766360888332,0.01128489,88614.0,88607.0,0.35287]
[1766360888532,0.01128502,88613.0,88607.0,0.35287]
[1766360890140,0.01128489,88614.0,88607.0,0.35287]
[1766360892046,0.01128502,88613.0,88607.0,0.35287]
[1766360893047,0.01128489,88614.0,88607.0,0.35287]
[1766360893256,0.01128477,88615.0,88607.0,0.35287]
[1766360895517,0.01916235,88615.0,88609.0,0.13422]
[1766360895797,0.00564,88626.0,88617.0,0.22533]
[1766360895998,0.03379893,88629.0,88626.0,0.13422]
[1766360896219,0.01128324,88627.0,88626.0,0.133671]
[1766360896422,0.01128324,88627.0,88614.0,0.01692489]
[1766360896423,0.01128337,88626.0,88615.0,0.22533]
[1766360896618,0.01128324,88627.0,88615.0,0.22533]
[1766360896766,0.01128324,88627.0,88615.0,0.23661477]
[1766360896971,0.00564,88630.0,88627.0,0.000549]
[1766360897182,0.00564,88632.0,88625.0,0.01128349]
[1766360897519,0.01128184,88638.0,88627.0,0.22533]
[1766360897520,0.00564,88635.0,88627.0,0.22533]
[1766360898188,0.00564,88635.0,88627.0,0.37083209]
[1766360898989,0.01692222,88635.0,88628.0,0.13422]
[1766360899290,0.00564,88635.0,88628.0,0.13422]
[1766360899714,0.005091,88635.0,88629.0,0.13422]
[1766360901548,0.06788936,88641.0,88628.0,0.22533]
[1766360901549,0.0002,88641.0,88633.0,0.13422]
[1766360901746,0.0002,88641.0,88630.0,0.01128286]
[1766360901747,0.0112812,88643.0,88638.0,0.13422]
[1766360901748,0.00445095,88640.0,88638.0,0.13422]
[1766360901959,0.01128146,88641.0,88638.0,0.133671]
[1766360902341,0.01128158,88640.0,88629.0,0.03389269]
[1766360902551,0.01128158,88640.0,88630.0,0.00564]
[1766360903563,0.01128146,88641.0,88630.0,0.00564]
[1766360903764,0.01128158,88640.0,88630.0,0.00564]
[1766360904352,0.01128146,88641.0,88630.0,0.00564]
[1766360904514,0.01128146,88641.0,88630.0,0.13986]
[1766360904876,0.01128158,88640.0,88630.0,0.13986]
[1766360906165,0.01128171,88639.0,88630.0,0.00564]
[1766360906368,0.03013158,88640.0,88630.0,0.00564]
[1766360906843,0.01885,88640.0,88630.0,0.00564]
[1766360907052,0.01692133,88642.0,88631.0,0.1327]
[1766360907895,0.01692133,88642.0,88632.0,0.20404]
[1766360907896,0.00564,88642.0,88632.0,0.20404]
[1766360908128,0.00564,88646.0,88642.0,0.000549]
[1766360908568,0.00564,88646.0,88639.0,0.1327]
[1766360909058,0.01692082,88646.0,88639.0,0.1327]
[1766360909260,0.00564,88646.0,88639.0,0.1327]
[1766360909461,0.00564,88646.0,88639.0,0.15750279]
[1766360910184,0.01692082,88646.0,88639.0,0.15750279]
[1766360910435,0.00564,88646.0,88639.0,0.15750279]
[1766360911022,0.01692082,88646.0,88639.0,0.15750279]
[1766360911344,0.00564,88646.0,88639.0,0.15750279]
[1766360912360,0.01352235,88647.0,88639.0,0.02480279]
[1766360912503,0.01128057,88648.0,88640.0,0.33674]
[1766360912713,5.7e-07,88648.0,88642.0,0.20404]
[1766360912920,6.9e-07,88647.0,88639.0,0.02480279]
[1766360913303,0.01128184,88638.0,88628.0,0.00564]
[1766360913584,0.01128247,88633.0,88628.0,0.00564]
[1766360913833,0.01128247,88633.0,88613.0,0.01128502]
[1766360913834,0.01128337,88626.0,88613.0,0.01128502]
[1766360914037,0.01352235,88636.0,88611.0,0.03389755]
[1766360914038,0.01128477,88615.0,88611.0,0.03389755]
[1766360914210,0.01128489,88614.0,88611.0,0.03389755]
[1766360914510,0.01128489,88614.0,88608.0,0.00564]
[1766360914511,0.00010688,88615.0,88608.0,0.00564]
[1766360914869,0.00010688,88615.0,88606.0,0.20404]
[1766360914870,0.00010688,88615.0,88606.0,0.21532591]
[1766360915064,0.00010688,88615.0,88607.0,0.20968]
[1766360915286,0.00010688,88615.0,88607.0,0.35513579]
[1766360915488,8.8e-07,88615.0,88609.0,0.13417]
[1766360915670,8.8e-07,88615.0,88612.0,0.13417]
[1766360916061,8.8e-07,88615.0,88608.0,0.13417]
[1766360917071,0.000106,88608.0,88606.0,0.00564]
[1766360917254,0.000106,88608.0,88605.0,0.00564]
[1766360917458,0.01128489,88614.0,88605.0,0.00564]
[1766360917677,0.01128515,88612.0,88605.0,0.00564]
[1766360917885,0.01128502,88613.0,88605.0,0.00564]
[1766360918366,8.8e-07,88615.0,88603.0,0.01128451]
[1766360918367,0.01352235,88606.0,88603.0,0.01128451]
[1766360918510,0.06771958,88601.0,88590.0,0.20055]
[1766360918718,0.0112868,88599.0,88590.0,0.20055]
[1766360919349,0.01128668,88600.0,88590.0,0.20055]
[1766360919551,0.07953668,88600.0,88589.0,0.13417]
[1766360919702,0.06825,88600.0,88588.0,0.01128821]
[1766360920102,0.07953668,88600.0,88588.0,0.13417]
[1766360920305,0.07953668,88600.0,88588.0,0.14545821]
[1766360920918,0.06825,88600.0,88588.0,0.14545821]
[1766360921127,0.06825,88600.0,88589.0,0.01128808]
[1766360921328,0.06825,88600.0,88588.0,0.14545821]
[1766360921738,0.06825,88600.0,88589.0,0.01128808]
[1766360922354,0.06825,88600.0,88588.0,0.14545821]
[1766360922563,0.06825,88600.0,88589.0,0.01128808]
[1766360923661,0.06825,88600.0,88590.0,0.01128795]
[1766360923890,0.00564,88601.0,88600.0,0.000443]
[1766360924134,0.00564,88604.0,88600.0,0.13417]
[1766360924787,0.00564,88604.0,88594.0,0.01128744]
[1766360924989,0.00564,88604.0,88595.0,0.01128731]
[1766360925557,0.00564,88604.0,88594.0,0.14545744]
[1766360927363,0.005197,88604.0,88595.0,0.21183731]
[1766360927565,0.005197,88604.0,88596.0,0.20055]
[1766360927780,0.005197,88604.0,88596.0,0.34600719]
[1766360927955,0.01352235,88606.0,88596.0,0.34600719]
[1766360927956,0.01352235,88606.0,88596.0,0.33472]
[1766360928157,0.01751756,88606.0,88599.0,0.13417]
[1766360928363,0.01751756,88606.0,88600.0,0.33472]
[1766360928558,0.01751756,88606.0,88601.0,0.13417]
[1766360928796,0.01731756,88606.0,88601.0,0.13417]
[1766360929144,0.01167756,88606.0,88601.0,0.13417]
[1766360929342,0.00564,88611.0,88606.0,0.00055]
[1766360929784,0.01692528,88611.0,88602.0,0.13417]
[1766360930183,0.00564,88611.0,88604.0,0.13417]
[1766360930597,0.0112854,88610.0,88604.0,0.13417]
[1766360930813,0.01692528,88611.0,88604.0,0.13417]
[1766360932189,0.0112854,88610.0,88604.0,0.13417]
[1766360932390,0.01692528,88611.0,88604.0,0.13417]
[1766360933815,0.01692528,88611.0,88598.0,0.01692693]
[1766360933816,0.000549,88604.0,88600.0,0.13417]
[1766360934022,0.0112854,88610.0,88600.0,0.13417]
[1766360934181,0.09203528,88611.0,88600.0,0.13417]
[1766360934388,0.0112854,88610.0,88600.0,0.13417]
[1766360934895,0.09203528,88611.0,88600.0,0.13417]
[1766360935131,0.0112854,88610.0,88600.0,0.13417]
[1766360935350,0.01128566,88608.0,88600.0,0.13417]
[1766360935781,0.01128553,88609.0,88597.0,0.03390238]
[1766360936056,0.07459,88605.0,88598.0,0.00564]
[1766360936464,0.08587604,88605.0,88598.0,0.00564]
[1766360936694,0.01128617,88604.0,88598.0,0.00564]
[1766360936878,0.07459,88605.0,88598.0,0.00564]
[1766360938189,0.0112854,88610.0,88598.0,0.01692693]
[1766360938530,0.04029528,88611.0,88599.0,0.0112868]
[1766360939176,0.01352235,88605.0,88599.0,0.0112868]
[1766360939762,0.01352235,88605.0,88598.0,0.15109693]
[1766360940441,0.01352235,88605.0,88599.0,0.0112868]
[1766360940614,0.01352235,88605.0,88599.0,0.13417]
[1766360941186,0.01352235,88605.0,88599.0,0.1454568]
[1766360942036,0.01352235,88605.0,88596.0,0.21757719]
[1766360942466,0.01352235,88605.0,88597.0,0.01128706]
[1766360942870,0.01352235,88605.0,88596.0,0.34046]
[1766360943012,0.01352235,88605.0,88596.0,0.35174719]
[1766360943575,0.01352235,88605.0,88596.0,0.34046]
[1766360945002,0.01352235,88605.0,88596.0,0.35174719]
[1766360945204,0.01352235,88605.0,88596.0,0.34046]
[1766360946524,0.01352235,88605.0,88596.0,0.34105]
[1766360947575,0.01352235,88605.0,88596.0,0.00574]
[1766360947984,0.000549,88596.0,88592.0,0.13476]
[1766360948184,0.000549,88596.0,88593.0,0.00554]
[1766360948379,0.000549,88596.0,88593.0,0.00544]
[1766360948623,0.01128668,88600.0,88593.0,0.00544]
[1766360949386,0.01128655,88601.0,88593.0,0.00544]
[1766360950338,0.000549,88593.0,88590.0,0.21031]
[1766360950744,0.0112868,88599.0,88590.0,0.21031]
[1766360951046,0.07413144,88605.0,88590.0,0.21031]
[1766360951047,0.01128642,88602.0,88590.0,0.34507]
[1766360951221,0.01128642,88602.0,88591.0,0.13476]
[1766360951385,0.01128655,88601.0,88591.0,0.13476]
[1766360952442,0.01128668,88600.0,88591.0,0.13476]
[1766360952823,0.01128655,88601.0,88591.0,0.13476]
[1766360953022,0.01128668,88600.0,88591.0,0.13476]
[1766360954058,0.01128655,88601.0,88591.0,0.13476]
[1766360954256,0.01128642,88602.0,88591.0,0.20467]
[1766360954458,0.01128642,88602.0,88592.0,0.13476]
[1766360954662,0.02257284,88603.0,88592.0,0.13476]
[1766360956449,0.02257284,88603.0,88592.0,0.20467]
[1766360956642,0.02257284,88603.0,88593.0,0.13476]
[1766360957783,0.01128655,88603.0,88593.0,0.13476]
[1766360957983,0.01692617,88604.0,88597.0,0.13476]
[1766360958418,0.01128629,88603.0,88597.0,0.13476]
[1766360958623,0.01128642,88602.0,88597.0,0.13476]
[1766360958776,0.01128655,88601.0,88596.0,0.20467]
[1766360958994,0.000549,88597.0,88592.0,0.13476]
[1766360959360,0.0112868,88599.0,88592.0,0.13476]
[1766360959783,0.01128693,88598.0,88592.0,0.13476]
[1766360959993,0.0112868,88599.0,88592.0,0.13476]
[1766360960295,0.01128693,88598.0,88592.0,0.13476]
[1766360961805,0.0112868,88599.0,88592.0,0.13476]
[1766360962415,0.01128642,88602.0,88592.0,0.13476]
[1766360962618,0.01128655,88601.0,88592.0,0.13476]
[1766360962827,0.01128642,88602.0,88592.0,0.13476]
[1766360963176,0.01128642,88602.0,88593.0,0.13476]
[1766360963394,0.01128629,88603.0,88594.0,0.0001]
[1766360963792,0.01128629,88603.0,88594.0,0.13486]
[1766360964215,0.01672617,88604.0,88594.0,0.20477]
[1766360964455,0.00544,88604.0,88596.0,0.13476]
[1766360964626,0.06771094,88612.0,88605.0,0.13476]
[1766360964828,0.00564,88613.0,88605.0,0.13476]
[1766360965031,0.01692502,88613.0,88605.0,0.13476]
[1766360965598,0.01128515,88612.0,88605.0,0.13476]
[1766360965808,0.01692502,88613.0,88605.0,0.13476]
[1766360967374,0.01128515,88612.0,88605.0,0.13476]
[1766360968156,0.01128515,88612.0,88606.0,0.12305]
[1766360968361,0.01128515,88612.0,88606.0,0.12093787]
[1766360969141,0.03565292,88614.0,88606.0,0.20173]
[1766360969142,0.00574,88614.0,88606.0,0.20173]
[1766360969545,0.00574,88614.0,88606.0,0.21301591]
[1766360969959,0.00574,88614.0,88606.0,0.20173]
[1766360970398,0.00574,88614.0,88607.0,0.12305]
[1766360970582,0.00574,88614.0,88605.0,0.20173]
[1766360970795,0.00574,88614.0,88610.0,0.12305]
[1766360971002,0.0001,88614.0,88611.0,0.12305]
[1766360971603,0.01352235,88621.0,88615.0,0.20173]
[1766360971810,0.06770267,88623.0,88616.0,0.12305]
[1766360972072,0.06770267,88623.0,88617.0,0.32478]
[1766360972073,0.01128375,88623.0,88617.0,0.32478]
[1766360972272,0.01128387,88622.0,88617.0,0.32478]
[1766360972789,0.011284,88621.0,88617.0,0.32478]
[1766360972991,0.01128387,88622.0,88617.0,0.32478]
[1766360974051,0.01128375,88623.0,88617.0,0.32478]
[1766360975970,0.011284,88621.0,88612.0,0.12365]
[1766360977181,0.01128413,88620.0,88612.0,0.12365]
[1766360979768,0.01128464,88616.0,88612.0,0.12365]
[1766360979925,0.01128451,88617.0,88612.0,0.12365]
[1766360980547,0.01128426,88619.0,88612.0,0.12365]
[1766360981302,0.01128451,88617.0,88612.0,0.123101]
[1766360981505,0.01128426,88619.0,88612.0,0.123101]
[1766360981733,0.01128413,88620.0,88612.0,0.123101]
[1766360981938,0.01128426,88619.0,88612.0,0.123101]
[1766360982154,0.01128426,88619.0,88605.0,0.01128604]
[1766360982155,0.01352235,88617.0,88597.0,0.01128706]
[1766360982357,0.01352235,88617.0,88598.0,0.00564]
[1766360982358,0.06762,88610.0,88598.0,0.00564]
[1766360982560,0.06762,88608.0,88598.0,0.01692693]
[1766360982765,0.06762,88608.0,88600.0,0.42429629]
[1766360983096,0.00564,88609.0,88600.0,0.43558297]
[1766360983299,0.00564,88609.0,88601.0,0.01128655]
[1766360983511,0.00564,88609.0,88600.0,0.55923297]
[1766360984366,0.00564,88609.0,88602.0,0.19735]
[1766360984504,0.00564,88609.0,88603.0,0.12365]
[1766360985446,0.01128502,88613.0,88609.0,0.000549]
[1766360985447,0.00564,88613.0,88609.0,0.000549]
[1766360985659,0.02480686,88617.0,88614.0,0.12365]
[1766360985869,0.02480686,88617.0,88611.0,0.19735]
[1766360986082,0.00554,88616.0,88611.0,0.19735]
[1766360986689,0.02480686,88617.0,88611.0,0.19735]
[1766360986903,0.00564,88616.0,88611.0,0.19735]
[1766360987145,0.00564,88615.0,88611.0,0.19735]
[1766360988202,0.02480686,88617.0,88611.0,0.19735]
[1766360988407,0.02480686,88617.0,88605.0,0.19735]
[1766360988408,0.01128477,88615.0,88605.0,0.19735]
[1766360988619,0.01128489,88614.0,88605.0,0.19735]
[1766360988827,0.01128489,88614.0,88605.0,0.321]
[1766360989950,0.01128477,88615.0,88605.0,0.321]
[1766360990116,0.01128489,88614.0,88605.0,0.321]
[1766360993513,0.01128489,88614.0,88606.0,0.0001]
[1766360995824,0.01128502,88613.0,88606.0,0.0001]
[1766360996029,0.01128477,88615.0,88606.0,0.0001]
[1766360996270,0.01128477,88615.0,88605.0,0.3209]
[1766360996423,0.01692464,88616.0,88605.0,0.3209]
[1766360999009,0.01128477,88615.0,88605.0,0.3209]
[1766360999219,0.01128502,88613.0,88605.0,0.3209]
[1766360999378,0.01128489,88614.0,88605.0,0.3209]
[1766361000352,0.01128477,88615.0,88605.0,0.3209]
[1766361001030,0.01692464,88616.0,88606.0,0.12365]
[1766361001235,0.01692464,88616.0,88615.0,0.000549]
[1766361001434,0.00564,88616.0,88615.0,0.000549]
[1766361001733,0.00544,88616.0,88606.0,0.12365]
[1766361002129,0.01672464,88616.0,88606.0,0.12365]
[1766361002652,0.00544,88616.0,88606.0,0.12365]
[1766361003209,0.01672464,88616.0,88606.0,0.12365]
[1766361003409,0.01128489,88614.0,88606.0,0.12365]
[1766361003719,0.01128477,88615.0,88606.0,0.12365]
[1766361004978,0.01128489,88614.0,88606.0,0.12365]
[1766361005186,0.01128477,88615.0,88606.0,0.12365]
[1766361005993,0.01672464,88616.0,88606.0,0.12365]
[1766361006458,0.01128477,88615.0,88606.0,0.12365]
[1766361007435,0.01672464,88616.0,88606.0,0.12365]
[1766361007661,0.00544,88616.0,88606.0,0.12365]
[1766361007869,0.00544,88616.0,88606.0,0.13493591]
[1766361008076,0.01240763,88616.0,88610.0,0.12047]
[1766361008482,0.00112299,88616.0,88610.0,0.12047]
[1766361009444,0.01240763,88616.0,88610.0,0.12047]
[1766361009645,0.01240763,88616.0,88609.0,0.19447]
[1766361010233,0.01128477,88615.0,88609.0,0.19447]
[1766361011016,0.01240763,88616.0,88609.0,0.19447]
[1766361011212,0.01128477,88615.0,88609.0,0.19447]
[1766361011470,0.01240763,88616.0,88609.0,0.19447]
[1766361013741,0.00112299,88616.0,88609.0,0.19447]
[1766361013952,0.00057299,88616.0,88609.0,0.31494]
[1766361015327,2.99e-06,88616.0,88606.0,0.01128591]
[1766361015530,2.99e-06,88616.0,88611.0,0.19447]
[1766361015747,0.02432487,88619.0,88613.0,0.19447]
[1766361015956,0.02480648,88620.0,88610.0,0.19447]
[1766361016096,2.35e-06,88620.0,88617.0,0.12047]
[1766361016699,0.01352235,88620.0,88618.0,0.12047]
[1766361016900,2.35e-06,88620.0,88618.0,0.12047]
[1766361017101,2.35e-06,88620.0,88619.0,0.31494]
[1766361017304,2.35e-06,88620.0,88619.0,0.314391]
[1766361020061,0.00564,88624.0,88619.0,0.193921]
[1766361020265,0.00564,88624.0,88620.0,0.12047]
[1766361022384,0.00564,88624.0,88620.0,0.31494]
[1766361023111,0.01692286,88630.0,88624.0,0.000549]
[1766361023317,0.01128298,88629.0,88624.0,0.121019]
[1766361023736,0.01128298,88629.0,88624.0,0.12047]
[1766361024169,0.00564,88630.0,88624.0,0.12057688]
[1766361024998,0.00564,88630.0,88624.0,0.00010688]
[1766361025278,0.01692286,88630.0,88624.0,0.00010688]
[1766361025500,0.00564,88630.0,88624.0,0.00010688]
[1766361028347,0.00564,88630.0,88625.0,0.12229]
[1766361028562,0.02431232,88634.0,88630.0,0.000549]
[1766361028724,0.01352235,88635.0,88628.0,0.12229]
[1766361028725,0.02480457,88635.0,88628.0,0.12229]
[1766361029341,0.01128235,88634.0,88628.0,0.12229]
[1766361029539,0.02480457,88635.0,88628.0,0.12229]
[1766361030401,0.01352235,88635.0,88628.0,0.12229]
[1766361030862,0.01352235,88635.0,88629.0,0.12229]
[1766361031187,0.02480457,88635.0,88629.0,0.12229]
[1766361031388,0.01128235,88634.0,88628.0,0.20448]
[1766361032005,0.01128247,88633.0,88628.0,0.20448]
[1766361032521,0.02480457,88635.0,88628.0,0.32677]
[1766361033523,0.01352235,88635.0,88628.0,0.32677]
[1766361034093,0.02480457,88635.0,88628.0,0.32677]
[1766361038225,0.01128247,88633.0,88628.0,0.32677]
[1766361038400,0.01128235,88634.0,88628.0,0.32677]
[1766361039337,0.01128247,88633.0,88628.0,0.32677]
[1766361040050,0.01128235,88634.0,88628.0,0.32677]
[1766361042459,0.01128247,88633.0,88624.0,0.12989688]
[1766361042627,0.01128235,88634.0,88624.0,0.12989688]
[1766361042822,0.01128247,88633.0,88624.0,0.12989688]
[1766361043029,0.01128247,88633.0,88625.0,0.12415]
[1766361043228,0.01128235,88634.0,88625.0,0.12415]
[1766361043462,0.01128235,88634.0,88624.0,0.19586688]
[1766361044936,0.19826457,88635.0,88624.0,0.19586688]
[1766361045133,0.18698235,88635.0,88625.0,0.31427]
[1766361045424,0.01128235,88634.0,88625.0,0.31427]
[1766361045843,0.19826457,88635.0,88625.0,0.31427]
[1766361048290,0.01128235,88634.0,88625.0,0.31427]
[1766361048695,0.18698235,88635.0,88625.0,0.31427]
[1766361049129,0.18698235,88635.0,88626.0,0.01128337]
[1766361049319,0.18698235,88635.0,88628.0,0.01128311]
[1766361049521,0.01352235,88635.0,88629.0,0.01128298]
[1766361050009,0.01352235,88635.0,88630.0,0.01128286]
[1766361051487,0.01352235,88635.0,88631.0,0.01128273]
[1766361052066,0.01352235,88635.0,88630.0,0.01128286]
[1766361052269,0.01352235,88635.0,88631.0,0.01128273]
[1766361054192,0.01352235,88635.0,88630.0,0.01128286]
[1766361055230,0.01352235,88635.0,88631.0,0.01128273]
[1766361055404,0.01352235,88635.0,88632.0,0.0112826]
[1766361055604,0.01297335,88635.0,88631.0,0.01128273]
[1766361055770,0.01297335,88635.0,88632.0,0.0112826]
[1766361055973,0.01297335,88635.0,88631.0,0.01128273]
[1766361057274,0.01297335,88635.0,88630.0,0.01128286]
[1766361057472,0.01297335,88635.0,88631.0,0.01128273]
[1766361057876,0.01297335,88635.0,88630.0,0.01128286]
[1766361058281,0.01297335,88635.0,88631.0,0.01128273]
[1766361058691,0.01352235,88634.0,88630.0,0.01128286]
[1766361058891,0.01352235,88634.0,88630.0,0.01108286]
[1766361059093,0.000549,88630.0,88628.0,0.01128311]
[1766361059487,0.01352235,88634.0,88628.0,0.01128311]
[1766361060072,0.01352235,88634.0,88629.0,0.01128298]
[1766361060287,0.01352235,88634.0,88630.0,0.01128286]
[1766361060715,0.01352235,88634.0,88629.0,0.01128298]
[1766361061399,0.01352235,88634.0,88628.0,0.01128311]
[1766361061933,0.01352235,88634.0,88629.0,0.01128298]
[1766361062133,0.01352235,88634.0,88628.0,0.01128311]
[1766361062557,0.01352235,88634.0,88629.0,0.01128298]
[1766361062756,0.01352235,88634.0,88628.0,0.01128311]
[1766361062757,0.01352235,88634.0,88626.0,0.06769998]
[1766361062937,0.01352235,88634.0,88629.0,0.01128298]
[1766361065157,0.20279847,88641.0,88632.0,0.0112826]
[1766361065353,0.03488478,88640.0,88631.0,0.01128273]
[1766361065580,0.00564,88641.0,88630.0,0.06769714]
[1766361065581,0.17282,88641.0,88630.0,0.01128286]
[1766361065783,0.20274847,88640.0,88630.0,0.01128286]
[1766361065956,0.02431847,88639.0,88630.0,0.01128286]
[1766361067354,0.02431847,88639.0,88632.0,0.0112826]
[1766361068175,0.02431847,88639.0,88631.0,0.01128273]
[1766361068575,0.01352235,88636.0,88629.0,0.42392314]
[1766361068775,0.000549,88631.0,88628.0,0.01128311]
[1766361069191,0.01352235,88636.0,88629.0,0.01128298]
[1766361069381,0.01352235,88636.0,88628.0,0.01128311]
[1766361069914,0.01352235,88636.0,88629.0,0.01128298]
[1766361070341,0.01352235,88636.0,88628.0,0.01128311]
[1766361070543,0.01352235,88636.0,88631.0,0.01128273]
[1766361070693,0.01297335,88636.0,88631.0,0.01128273]
[1766361071665,0.01297335,88636.0,88632.0,0.0112826]
[1766361071890,0.01297335,88636.0,88631.0,0.01128273]
[1766361072098,0.01297335,88636.0,88632.0,0.0112826]
[1766361073651,0.01297335,88636.0,88633.0,0.01128247]
[1766361074200,6.9e-07,88647.0,88636.0,0.11936]
[1766361074401,6.9e-07,88647.0,88644.0,0.31592]
[1766361074574,0.01352235,88648.0,88646.0,0.11936]
[1766361075302,0.01352235,88652.0,88649.0,0.19656]
[1766361075440,0.01352235,88652.0,88651.0,0.11936]
[1766361076323,0.01352235,88652.0,88651.0,0.118811]
[1766361076523,0.01362929,88652.0,88651.0,0.118811]
[1766361076746,0.01127917,88659.0,88647.0,0.00564]
[1766361076747,0.0002,88668.0,88657.0,0.05639705]
[1766361076936,0.01867713,88675.0,88668.0,0.20783802]
[1766361076937,0.0002,88675.0,88668.0,0.20783802]
[1766361077139,0.0002,88675.0,88672.0,0.01127751]
[1766361077344,0.0002,88675.0,88670.0,0.01127777]
[1766361077345,0.0002,88675.0,88670.0,0.05638879]
[1766361077544,0.0002,88675.0,88672.0,0.01127751]
[1766361077962,0.00564,88686.0,88671.0,0.01127764]
[1766361077963,0.01127548,88688.0,88671.0,0.01127764]
[1766361077964,0.0002,88689.0,88685.0,0.01127586]
[1766361078212,0.22046,88699.0,88689.0,0.01131751]
[1766361078454,0.22046,88699.0,88692.0,0.01127497]
[1766361078455,0.02,88699.0,88692.0,0.01127497]
[1766361078622,0.02,88699.0,88693.0,0.11936]
[1766361079031,0.21737319,88706.0,88689.0,0.42376235]
[1766361079032,0.04622946,88718.0,88702.0,0.0112737]
[1766361079235,0.04622946,88718.0,88709.0,0.11936]
[1766361079236,0.00564,88718.0,88709.0,0.11936]
[1766361079504,0.00564,88718.0,88711.0,0.01127255]
[1766361079623,0.0002,88724.0,88712.0,0.01127243]
[1766361079819,0.0002,88724.0,88715.0,0.01127205]
[1766361080033,0.00030682,88724.0,88717.0,0.11936]
[1766361081446,0.00030682,88724.0,88717.0,0.13063179]
[1766361081651,0.00030682,88724.0,88717.0,0.11936]
[1766361081852,0.00030682,88724.0,88717.0,0.118811]
[1766361082466,0.00030682,88724.0,88717.0,0.19656]
[1766361083749,0.00030682,88724.0,88718.0,0.11936]
[1766361084191,0.00055,88718.0,88717.0,0.19656]
[1766361084403,0.00055,88718.0,88717.0,0.31592]
[1766361084847,0.00030682,88724.0,88718.0,0.11936]
[1766361085059,0.2868617,88748.0,88716.0,0.01691192]
[1766361085060,0.20046,88740.0,88726.0,0.13063065]
[1766361085284,0.016909,88739.0,88727.0,0.11936]
[1766361085501,0.217369,88739.0,88727.0,0.11936]
[1766361085883,0.01126951,88735.0,88727.0,0.11936]
[1766361086212,0.01127103,88723.0,88714.0,0.03385662]
[1766361086413,0.01127128,88721.0,88715.0,0.00564]
[1766361086731,0.01127154,88719.0,88715.0,0.1239]
[1766361086964,0.01127128,88721.0,88716.0,0.11826]
[1766361087199,0.01127141,88720.0,88716.0,0.11771]
[1766361087401,0.01127128,88721.0,88716.0,0.19535]
[1766361087548,0.01127141,88720.0,88716.0,0.19535]
[1766361087745,0.00202357,88718.0,88716.0,0.19535]
[1766361087949,0.01127128,88721.0,88716.0,0.20099]
[1766361088196,0.06762375,88727.0,88721.0,0.196449]
[1766361088524,0.05635517,88723.0,88721.0,0.19535]
[1766361088642,0.0112709,88724.0,88721.0,0.19535]
[1766361088838,0.05635517,88723.0,88721.0,0.19535]
[1766361089300,0.0112709,88724.0,88721.0,0.19535]
[1766361090580,0.01127116,88722.0,88719.0,0.11826]
[1766361090963,0.01127103,88723.0,88722.0,0.000549]
[1766361091188,0.01127103,88723.0,88719.0,0.11826]
[1766361091394,0.01127065,88726.0,88723.0,0.00037922]
[1766361091592,0.01127065,88726.0,88717.0,0.00564]
[1766361091593,6.5e-07,88726.0,88718.0,0.11826]
[1766361091970,0.01127078,88725.0,88718.0,0.11826]
[1766361092374,0.0112709,88724.0,88718.0,0.11826]
[1766361092572,0.0112713,88726.0,88724.0,0.000549]
[1766361092573,6.5e-07,88726.0,88724.0,0.000549]
[1766361092794,0.05635145,88729.0,88726.0,0.11826]
[1766361092795,0.01127027,88729.0,88726.0,0.11826]
[1766361093001,0.05634945,88732.0,88728.0,0.11826]
[1766361093002,0.01127014,88730.0,88728.0,0.11826]
[1766361093194,0.01127002,88731.0,88728.0,0.11826]
[1766361093572,0.01127002,88731.0,88728.0,0.11771]
[1766361093573,5.5e-07,88729.0,88728.0,0.11771]
[1766361094781,0.05635199,88728.0,88724.0,0.00564]
[1766361094971,0.01127052,88727.0,88724.0,0.00564]